Cogmind - Beta 9.3 @@@ ROGUE MODE // 2019.12.21 @ 13:34:35 // Winter2019/RPGLIKE Player: 277 Result: Destroyed by Y-45 Defender with Beam Rifle Performance ------------- Evolutions (1) 500 Regions Visited (2) 400 Robots Destroyed (22) 110 Value Destroyed (431) 431 Prototype IDs (0) 0 Alien Tech Used (0) 0 Bonus (18) 18 TOTAL SCORE: 1459 Bonus ------- High Alert Combat Kills 18 Cogmind --------- Core Integrity 0/650 Matter 259/500 Energy 300/300 System Corruption 0% Temperature Cool (9) Movement Walking (120) Location -9/Materials Parts ------- > --- POWER (1) -------- Ion Engine > --- PROPULSION (2) --- Aluminum Leg Aluminum Leg > --- UTILITY (3) ------ High-capacity Matter Pod Targeting Computer > --- WEAPON (2) ------- EM Pulse Gun Grenade Launcher > --- INVENTORY (1) ---- (None) Peak State ------------ > --- POWER ------------ Ion Engine > --- PROPULSION ------- Aluminum Leg Aluminum Leg > --- UTILITY ---------- High-capacity Matter Pod Targeting Computer > --- WEAPON ----------- EM Pulse Gun Light Assault Rifle > --- INVENTORY -------- (None) [Rating: 7] Favorites ----------- Power Ion Engine Engine Ion Engine Propulsion Aluminum Leg Leg Aluminum Leg Utility Targeting Computer Storage High-capacity Matter Pod Processor Targeting Computer Weapon EM Pulse Gun Energy Gun EM Pulse Gun Ballistic Gun Light Assault Rifle Launcher Grenade Launcher Build | -11 -10 -9 ------- Run | Scr Mat Mat Slots Evolved 4 | 3 . 1 Power . | . . . Propulsion 1 | 1 . . Utility 2 | 1 . 1 Weapon 1 | 1 . . Parts Attached 10 | 5 3 2 Power 1 | 1 . . Engine 1 | 1 . . Core . | . . . Reactor . | . . . Propulsion 3 | 2 . 1 Treads . | . . . Leg 3 | 2 . 1 Wheel . | . . . Hover . | . . . Flight . | . . . Utility 3 | . 2 1 Device . | . . . Storage 2 | . 1 1 Processor 1 | . 1 . Hackware . | . . . Protection . | . . . Artifact . | . . . Weapon 3 | 2 1 . Energy Gun 1 | 1 . . Energy Cannon . | . . . Ballistic Gun 1 | 1 . . Ballistic Cannon . | . . . Launcher 1 | . 1 . Special Weapon . | . . . Impact Weapon . | . . . Slashing Weapon . | . . . Piercing Weapon . | . . . Special Melee Weapon . | . . . Unidentified Prototypes . | . . . Parts Lost . | . . . Power . | . . . Propulsion . | . . . Utility . | . . . Weapon . | . . . Highest Loss Streak . | . . . Average Slot Usage (%) 91 | . 97 86 Engine 13 | . 14 12 Leg 26 | . 28 25 Storage 12 | . 13 10 Processor 12 | . 12 12 Energy Gun 13 | . 14 12 Ballistic Gun 3 | . 7 . Launcher 9 | . 6 12 Naked Turns . | . . . Heaviest Build 14 | 8 14 14 Greatest Support 25 | 20 20 25 Greatest Overweight (x) 1 | 1 . . Average Overweight (x) . | . . . Largest Inventory Capacity 1 | . . 1 Average Capacity . | . . . Most Carried 1 | . . 1 Average Carried . | . . . Final Capacity 1 | . . 1 Final Carried . | . . . Class Distribution -------------------- 100% | Mutant Dominant Class ---------------- Mutant | -10/Materials Mutant | -9/Materials Resources | -11 -10 -9 ----------- Run | Scr Mat Mat Matter Collected 619 | 250 230 139 Remotely . | . . . Salvage Created 484 | . 167 317 Parts 35 | . 9 26 Haulers Intercepted 1 | . 1 . Recyclers Shooed . | . . . Parts Field Recycled . | . . . Retrieved Matter . | . . . Parts Self-Destructed . | . . . Prevented . | . . . Kills | -11 -10 -9 ------- Run | Scr Mat Mat Combat Hostiles Destroyed 11 | . . 11 Guns 1 | . . 1 AOE 8 | . . 8 Classes Destroyed 8 | . 4 4 Builder 3 | . . 3 Tunneler 1 | . 1 . Hauler 1 | . 1 . Recycler 2 | . 1 1 Watcher 4 | . 2 2 Swarmer 6 | . . 6 Grunt 4 | . . 4 Sentry 1 | . . 1 Best Kill Streak 14 | . 3 14 Combat Bots Only 5 | . . 5 Max Kills in Single Turn 3 | . 2 3 Gunslinging . | . . . Exploded 2 | . . 2 Melee . | . . . Uniques/NPCs Destroyed . | . . . Combat | -11 -10 -9 -------- Run | Scr Mat Mat Damage Taken 879 | . 24 855 Core 703 | . 18 685 Absorbed by Shields . | . . . Redirected to Core 568 | . 18 550 Core Remaining (%) 98 | 100 97 . Volleys Fired 68 | . 24 44 Largest 2 | . 1 2 Hottest 70 | . 40 70 Shots Fired 74 | . 24 50 Gun 54 | . 20 34 Cannon . | . . . Launcher 20 | . 4 16 Special . | . . . Kinetic . | . . . Thermal . | . . . Explosive 20 | . 4 16 Electromagnetic 54 | . 20 34 Robot Hit Streak 12 | . 4 12 Robot Miss Streak 2 | . 1 2 Penetration Max . | . . . Secondary Targets . | . . . Shots Hit Robots 42 | . 7 35 Core Hits 29 | . 5 24 Critical Hits . | . . . Critical Kills . | . . . Critical Parts Destroyed . | . . . Melee Attacks . | . . . Impact . | . . . Slashing . | . . . Piercing . | . . . Sneak Attacks . | . . . Combat Hostiles . | . . . Follow-up Attacks . | . . . Damage Inflicted 1378 | . 209 1169 Guns 513 | . 139 374 Cannons . | . . . Explosions 865 | . 70 795 Melee . | . . . Ramming . | . . . Kinetic . | . . . Thermal 317 | . 70 247 Explosive 548 | . . 548 Electromagnetic 513 | . 139 374 Impact . | . . . Slashing . | . . . Piercing . | . . . Highest Corruption . | . . . Average Corruption . | . . . Corruption Purged . | . . . Overload Shots . | . . . Overflow Damage 99 | . . 99 Projectiles . | . . . Explosions 99 | . . 99 Melee . | . . . Knockbacks . | . . . Impact . | . . . Kinetic . | . . . Secondary . | . . . Self-Inflicted Damage 168 | . 24 144 Shots 7 | . 1 6 Rammed . | . . . Targets Rammed . | . . . Kicked . | . . . Crushed . | . . . Highest Temperature 6 | . 6 3 Average Temperature 4 | . 6 3 Received Heat Transfer 261 | . . 261 Siege Activations . | . . . Robots Corrupted 2 | . . 2 Combat Hostiles 2 | . . 2 Parts Fried 7 | . 5 2 Impact Corruptions . | . . . Robots Melted . | . . . Combat Hostiles . | . . . Parts Melted . | . . . Heat Transferred 350 | . 100 250 Parts Sabotaged . | . . . Parts Stolen . | . . . Parts Stripped . | . . . Power Chain Reactions 2 | . 1 1 Missiles Intercepted . | . . . Alert | -11 -10 -9 ------- Run | Scr Mat Mat Peak Influence 481 | . 103 481 Average Influence 97 | . 32 174 Maximum Alert Level 2 | . . 2 Low Security (%) 85 | 100 100 68 Level 1 7 | . . 16 Level 2 6 | . . 14 Level 3 . | . . . Level 4 . | . . . Level 5 . | . . . High Security . | . . . Max Security . | . . . Squads Dispatched 3 | . . 3 Investigation 1 | . . 1 Extermination . | . . . Reinforcement 2 | . . 2 Assault . | . . . Garrison . | . . . Intercept . | . . . Construction Impeded 1 | . . 1 Haulers Reinforced . | . . . Stealth | -11 -10 -9 --------- Run | Scr Mat Mat Distress Signals 4 | . . 4 Communications Jammed . | . . . Distress Signals . | . . . Times Spotted 18 | . 2 16 Peak Tracking Total 4 | . 2 4 Tactical Retreats . | . . . Traps | -11 -10 -9 ------- Run | Scr Mat Mat Traps Triggered . | . . . Indirectly . | . . . Trap Hack Attempts . | . . . Triggered . | . . . Disarmed . | . . . Reprogrammed . | . . . Reused . | . . . Traps Extracted . | . . . Installed . | . . . Triggered . | . . . Machines | -11 -10 -9 ---------- Run | Scr Mat Mat Machines Disabled 9 | . 4 5 Max in Single Turn 3 | . 2 3 Machines Sabotaged . | . . . Garrisons Compromised . | . . . Overloaded Fab Kills . | . . . Fab Network Shutdowns . | . . . Hacking | -11 -10 -9 --------- Run | Scr Mat Mat Machines Accessed 5 | . 4 1 Terminals 3 | . 3 . Fabricators . | . . . Repair Stations 1 | . . 1 Recycling Units 1 | . 1 . Scanalyzers . | . . . Garrison Access . | . . . Total Hacks 20 | . 15 5 Successful 11 | . 9 2 Failed 9 | . 6 3 Catastrophic . | . . . Database Lockouts . | . . . Manual . | . . . Terminals 13 | . 13 . Fabricators . | . . . Repair Stations 5 | . . 5 Recycling Units 2 | . 2 . Scanalyzers . | . . . Garrison Access . | . . . Terminal Hacks 7 | . 7 . Record 2 | . 2 . Alert Level 2 | . 2 . Dispatch Records 1 | . 1 . Assault Status 1 | . 1 . Zone Layout 1 | . 1 . Fabricator Hacks . | . . . Repair Station Hacks 2 | . . 2 Scan Component 1 | . . 1 Repair 1 | . . 1 Recycling Unit Hacks 2 | . 2 . Report Inventory 1 | . 1 . Retrieve Components 1 | . 1 . Scanalyzer . | . . . Garrison Access Hacks . | . . . Unauthorized Hacks . | . . . Terminals . | . . . Fabricators . | . . . Repair Stations . | . . . Recycling Units . | . . . Scanalyzers . | . . . Garrison Access . | . . . Data Cores Recovered . | . . . Used . | . . . Hacking Detections 4 | . 3 1 Full Trace Events 1 | . . 1 Feedback Events . | . . . Feedback Blocked . | . . . Robot Schematics Acquired . | . . . Robots Built . | . . . Matter . | . . . Time . | . . . Total Robot Build Rating . | . . . Part Schematics Acquired . | . . . Parts Built . | . . . Matter . | . . . Time . | . . . Total Part Build Rating . | . . . Parts Repaired 1 | . . 1 Time 26 | . . 26 Parts Recycled . | . . . Recycled Matter . | . . . Retrieved Matter . | . . . Retrieved Components 2 | . 2 . Parts Scanalyzed . | . . . Part Schematics Acquired . | . . . Parts Damaged . | . . . Bothacking | -11 -10 -9 ------------ Run | Scr Mat Mat Used RIF Installer . | . . . Robots Hacked . | . . . Non-combat . | . . . Combat . | . . . Robot Hacks Applied . | . . . Relay Couplers Released . | . . . Robots Rewired . | . . . Allies Hacked . | . . . Hacks Repelled . | . . . Allies | -11 -10 -9 -------- Run | Scr Mat Mat Total Allies . | . . . Largest Group . | . . . Highest-Rated Group . | . . . Highest-Rated Ally . | . . . Total Orders . | . . . Ally Attacks . | . . . Total Damage . | . . . Kills . | . . . Allies Corrupted . | . . . Allies Melted . | . . . Intel | -11 -10 -9 ------- Run | Scr Mat Mat Robot Analysis Total . | . . . Derelict Logs Recovered . | . . . Drone Launches . | . . . Drone Recoveries . | . . . Exploration | -11 -10 -9 ------------- Run | Scr Mat Mat Turns Passed 576 | 36 270 270 Spaces Moved 317 | 26 181 110 Core 3 | 3 . . Treads . | . . . Legs 314 | 23 181 110 Wheels . | . . . Hover . | . . . Flight . | . . . Fastest Speed 50 | 50 120 120 Average Speed 119 | 113 120 120 Slowest Speed 120 | 120 120 120 Overloaded Moves . | . . . Propulsion Burnouts . | . . . Robots Hopped . | . . . Cave-ins Triggered . | . . . Exploration Rate (%) 23 | 4 45 21 Regions Visited 2 Branch Regions . Pre-discovered Areas . | . . . Known Exits Taken . | . . . Unknown Exits Taken 2 | 1 1 . Scrap Searched . | . . . Spaces Dug . | . . . Terrain Destroyed 160 | . 16 144 Melee . | . . . Projectile . | . . . AOE 160 | . 16 144 Actions | -11 -10 -9 --------- Run | Scr Mat Mat Total 437 | 30 209 198 Wait 38 | . 1 37 Move 315 | 25 180 110 Hop . | . . . Pick Up 1 | . . 1 Fast Attach 9 | 5 3 1 Attach . | . . . Detach . | . . . Swap 1 | . . 1 Drop 3 | . 1 2 Fire 68 | . 24 44 Melee . | . . . Ram . | . . . Kick . | . . . Crush . | . . . Escape Stasis . | . . . Rewire . | . . . Trap . | . . . Miscellaneous 2 | . . 2 Route ------- -11/Scrapyard -10/Materials (discovered 2 exits: *Mat x2) -9/Materials History --------- Turn | Location | Event 2 | -11/Scrapyard | Upgraded with Propulsion slot (x1) 2 | -11/Scrapyard | Upgraded with Utility slot (x1) 2 | -11/Scrapyard | Upgraded with Weapon slot (x1) 13 | -11/Scrapyard | Discovered new exit (range 17) 37 | -11/Scrapyard | Entered Materials 201 | -10/Materials | Discovered new exit (range 14) 289 | -10/Materials | Discovered new exit (range 7) 307 | -10/Materials | Entered another Materials area 309 | -9/Materials | Reached level 2 311 | -9/Materials | Upgraded with Utility slot (x1) 317 | -9/Materials | Build established: Mutant 351 | -9/Materials | Repaired Hcp. Matter Pod 433 | -9/Materials | Core integrity fell below 50% 503 | -9/Materials | Reached level 3 555 | -9/Materials | Core integrity fell below 20% 577 | -9/Materials | Destroyed by Y-45 Defender with Beam Rifle Last Messages --------------- 00539_ The unstable cave ceiling collapses. 00539_ K-01 Serf collects debris. 00543_ The unstable cave ceiling collapses. 00545_ K-01 Serf collects debris. 00550_ G-34 Mercenary IFF system glitched. 00552_ K-01 Serf collects debris. 00554_ G-34 Mercenary system terminally corrupted. 00556_ K-01 Serf collects debris. 00558_ The unstable cave ceiling collapses. 00559_ G-34 Mercenary destroyed. 00562_ K-01 Serf collects debris. 00563_ R-06 Scavenger destroyed. 00565_ K-01 Serf collects debris. 00569_ W-16 Scout sends out distress signal. 00569_ K-01 Serf collects debris. 00572_ The unstable cave ceiling collapses. 00572_ K-01 Serf collects debris. 00575_ Protomatter-20 decays. 00576_ U-05 Engineer lays Concrete. 00576_ K-01 Serf collects debris. Map ----- +----------------------------------------------------+ | | | | | | | | | | | ?????????????????????????????????????????????????? | | ?????????????????????????????????????????????????? | | ?????????????????????????????????????????????????? | | ?????????????????????????????????????????????????? | | ?????????????????????????????????????????????????? | | ??????????????????????##??##?????????????????????? | | ????????????????????### ? ?????????????????????? | | ???????????????????? T ?????????????????????? | | ????????????????????? "" ?????????????????????? | | ????????????????????? ?????????????????????? | | ?????????????????????# ?????????????????????? | | ?????????????????????# ##????????????????????? | | ?????????????????????? = #=????????????????????? | | ?????????????????????? # ????????????????????? | | ??????????????????????? ?????????????????????? | | ??????????????????????? ????????????####?????# | | ???????????????????????# #????????????# ??? # | | ???????????????????????# ###??????????# ??? # | | ?????????????????????### #########??# """ # | | ?????????????????????# % k #??# """ # | | ?????????????????????# @ #??# # | | ?????????????????????# *[= #??# """ # | | ?????????????????????# # #??# """ # | | ?????????????????????## [ ! #??# """ # | | ?????????????????????## #??# # | | ??????????????????????### # =%Y [ ####### ### | | ????????????????????????### ## | | ???????????????????????????# ### # | | ???????????????????????????? #?# ## | | ???????????????????????????? ### ## ###? | | ?????????????????????# ########s## # =## #??? | | ?????????????????????# ? "" #??? | | ?????????????????????# ? "" #??? | | ?????????????????????# """#??? | | ???????????????????? ? " | | ???????????????????? ? " " | | ????????????????????? " " | | ????????????????????? " " | | ????????????????????? ? " !! | | ????????????????????? " ! | | ??????????????????????### # | | ????????????????????????# ! % """""# ## * | | ????????????????????????#=% ###### #?###### | | ???????????????????????? * ?????# #??????? | | ?????????????????????????? !!! ?????# #??????? | +----------------------------------------------------+ Best States ------------- Heat Dissipation 37 Energy Generation 10 Energy Capacity 300 Matter Stores 500 Matter Capacity 500 Sight Range 17 Robot Scan Range 18 Terrain Scan Density 110 Evasion (%) 40 Targeting Accuracy 5 Item Schematics ----------------- None Robot Schematics ------------------ None Fabricated ------------ Nothing Alien Tech Used ----------------- None Achievements -------------- None Challenges ------------ None RPGLIKE | -11 -10 -9 --------- Run | Scr Mat Mat Levels Raised 2 | . . 2 XP Earned 6794 | 3000 440 3354 XP Spent 4495 | 3000 . 1495 Upgrades 21 | 14 . 7 Propulsion Slot 1 | 1 . . Utility Slot 2 | 1 . 1 Weapon Slot 1 | 1 . . Core Integrity 1 | . . 1 Heat Dissipation 2 | 1 . 1 Energy Storage 1 | . . 1 Mass Support 1 | . . 1 Inventory Capacity 1 | . . 1 Sight Range 1 | 1 . . Sensor Range 9 | 9 . . Terrain Scan Density 1 | . . 1 Protomatter Created 102 | . . 102 Integrity Restored 48 | . . 48 Core 48 | . . 48 Protomatter Decayed 24 | . . 24 Game ------ Seed GodEtherialClaw Manual? 0 Play Time 00:11:18 Cumulative 173.5 hours Start 2019.12.21 @ 13:22:58 End 2019.12.21 @ 13:34:35 Sessions 1 Manual Loads 0 Difficulty Rogue Special Mode Winter2019/RPGLIKE Game No. 117 Rogue 117 Adventurer 0 Explorer 0 Win Type - Total 1 Types 1/0/0/0/0/0/0 Lore% 50 Gallery% 66 Achievement% 48 Wizard Run 0 Options --------- ASCII 0 Keyboard 0 Movement Mouse Keybinds 0 Fullscreen 1 Font 18/SmallcapsGlow Map View 76x50 Tactical HUD 1 Map Filters NONE Filters NONE Steam 1 RUN: 68f6ee66-b60a-482e-97a0-0a8a3eec7af8